{"text_format":"3","workbook":"xlsx","n_sheets":1,"sheets":["Bid Table"],"not_rendered":{"defined_names":2},"read":"whole","date_system":"1900"}

{"sheet":"Bid Table","index":0,"n_rows":74,"n_cols":12,"rows_kept":74,"merged":[[0,0,0,10],[1,0,1,10],[2,0,2,10],[70,0,70,10],[71,1,71,10],[72,1,72,10],[73,1,73,10]]}
["Exhibit A"]
["Bid Table"]
["Front St. Underground (UG) Infrastructure Upgrade T3 - Project #1927\nMaterials RFB \n"]
["Item No. ","Equipment Description ","Manufacturer","Part Number","Quantity ",null,"Unit Price","Unit","Cost ",null,"Cost ","Lead Time"]
[1,"Three Phase Junction Cabinet, 25 kV, 600 A, 30\"x67\"x23\", Four Parking Stands, Three Back Plates",null,null,1,"x",null,"EA",{"$f":"E5*G5","v":0},"=",{"$f":"IF(G5=0,\"   \",I5)","v":"   "}]
[2,"Polymer Concrete Junction Box, Square Enclosure, 48\"x48\"x48\", Tier 15, Flush mount",null,null,2,"x",null,"EA",0,"=","   "]
[3,"Secondary Pedestal, Above Grade, With Penta Bolt and Hasp, 15\" x 15\" x 30\"",null,null,1,"x",null,"EA",{"$f":"E7*G7","v":0},"=","   "]
[4,"15 kV, 200 A Loadbreak Junction, with U-straps, 4 Interfaces",null,null,3,"x",null,"EA",0,"=","   "]
[5,"15 kV, 200 A Loadbreak Elbow",null,null,19,"x",null,"EA",0,"=","   "]
[6,"15 kV, 200 A Insulated Shielded Elbow Surge Arrester, 12.7 kV RMS MCOV",null,null,4,"x",null,"EA",0,"=","   "]
[7,"15 kV Cable Splice",null,null,7,"x",null,"EA",0,"=","   "]
[8,"Flood-Seal Multi-port Bus Connectors, 6 outlets, with rubber insulating sleeve covers",null,null,22,"x",null,"EA",0,"=","   "]
[9,"Flood-Seal Dual Adapter Kit",null,null,16,"x",null,"EA",0,"=","   "]
[10,"Flood-Seal Multi-port Bus Connectors, 3 outlets, Y type, with rubber insulating sleeve covers",null,null,9,"x",null,"EA",0,"=","   "]
[11,"Flood-Seal Multi-port Bus Connectors, 2-bolt, 6 outlets, with rubber insulating sleeve covers",null,null,11,"x",null,"EA",0,"=","   "]
[12,"Flood-Seal Multi-port Bus Connectors, 2-bolt, 4 outlets, with rubber insulating sleeve covers",null,null,0,"x",null,"EA",0,"=","   "]
[13,"Flood-Seal Multi-port Bus Connectors, 1&2-bolt, 4 outlets",null,null,4,"x",null,"EA",0,"=","   "]
[14,"Flood-Seal Sealing Sleeve, 2-bolt",null,null,4,"x",null,"EA",0,"=","   "]
[15,"Flood-Seal Sealing Sleeve, 1-bolt",null,null,8,"x",null,"EA",0,"=","   "]
[16,"Flood-Seal Sealing Sleeve, Small Conductor Adapter, #12 & #10",null,null,8,"x",null,"EA",0,"=","   "]
[17,"Manhole Wall Support, 316 stainless steel slotted channel, 72\" long, 13/16\" x 1-5/8\", 12 GA (one 10' piece, field cut to length)",null,null,7,"x",null,"EA",0,"=","   "]
[18,"Pull Box Wall Support, 316 stainless steel slotted channel, 48\" long, 13/16\" x 1-5/8\", 12 GA (leftover from above cut)",null,null,0,"x",null,"EA",0,"=","   "]
[19,"Cable Support Bracket, 316 stainless steel slotted channel, 18\" long, 1-5/8\"x1-5/8\", 12 GA",null,null,60,"x",null,"EA",0,"=","   "]
[20,"Cable Clamp, 1-7/8\", polymer, with 316 stainless steel strap",null,null,205,"x",null,"EA",0,"=","   "]
[21,"600 V Terminal Lug, 500 kcmil AL, 2-hole NEMA",null,null,97,"x",null,"EA",0,"=","   "]
[22,"600 V Terminal Lug, 350 kcmil AL, 2-hole NEMA",null,null,33,"x",null,"EA",0,"=","   "]
[23,"600 V Terminal Lug, # 4/0 AWG AL, 2-hole NEMA",null,null,9,"x",null,"EA",0,"=","   "]
[24,"600 V Terminal Lug, # 2/0 AWG AL, 2-hole NEMA",null,null,14,"x",null,"EA",0,"=","   "]
[25,"600 V Terminal Lug, # 1/0 AWG AL, 2-hole NEMA",null,null,0,"x",null,"EA",0,"=","   "]
[26,"600 V Terminal Lug, # 10 AWG AL, 2-hole NEMA",null,null,8,"x",null,"EA",0,"=","   "]
[27,"600 V Terminal Lug, # 12 AWG AL, 2-hole NEMA",null,null,4,"x",null,"EA",0,"=","   "]
[28,"600 V Terminal Lug, 500 kcmil AL, 1-hole NEMA",null,null,3,"x",null,"EA",0,"=","   "]
[29,"600 V Terminal Lug, 350 kcmil AL, 1-hole NEMA",null,null,2,"x",null,"EA",0,"=","   "]
[30,"600 V Terminal Lug, # 4/0 AWG AL, 1-hole NEMA",null,null,3,"x",null,"EA",0,"=","   "]
[31,"600 V Terminal Lug, # 2/0 AWG AL, 1-hole NEMA",null,null,7,"x",null,"EA",0,"=","   "]
[32,"600 V Terminal Lug, # 1/0 AWG AL, 1-hole NEMA",null,null,0,"x",null,"EA",0,"=","   "]
[33,"600 V Terminal Lug, # 10 AWG AL, 1-hole NEMA",null,null,12,"x",null,"EA",0,"=","   "]
[34,"600 V Terminal Lug, # 12 AWG AL, 1-hole NEMA",null,null,7,"x",null,"EA",0,"=","   "]
[35,"4-hole NEMA Stud Connectors (ea) for xfmr sized 10-75 kVA",null,null,3,"x",null,"EA",0,"=","   "]
[36,"4-hole NEMA Stud Connectors (ea) for xfmr sized 100-167 kVA",null,null,7,"x",null,"EA",0,"=","   "]
[37,"15 kV URD Cable No. 1/0 AWG AL, EPR (ft)",null,null,1650,"x",null,"FT",0,"=","   "]
[38,"600 V, Single Conductor Secondary UD Cable 500 kcmil AL, Color Coded Yellow",null,null,3500,"x",null,"FT",0,"=","   "]
[39,"600 V, Single Conductor Secondary UD Cable 500 kcmil AL, Color Coded Blue",null,null,1500,"x",null,"FT",0,"=","   "]
[40,"600 V, Single Conductor Secondary UD Cable 500 kcmil AL, Color Coded Black",null,null,1500,"x",null,"FT",0,"=","   "]
[41,"600 V, Single Conductor Secondary UD Cable 500 kcmil AL, Color Coded Red",null,null,1500,"x",null,"FT",0,"=","   "]
[42,"600 V, Single Conductor Secondary UD Cable 350 kcmil AL, Color Coded White",null,null,2350,"x",null,"FT",0,"=","   "]
[43,"600 V, Triplex Secondary UD Cable, 500-350 kcmil AL",null,null,100,"x",null,"FT",0,"=","   "]
[44,"600 V, Triplex Secondary UD Cable, 4/0-2/0 AWG AL",null,null,100,"x",null,"FT",0,"=","   "]
[45,"600 V, Quadruplex Secondary UD Cable, 4/0-2/0 AWG AL",null,null,165,"x",null,"FT",0,"=","   "]
[46,"600 V, Single Conductor Secondary UD Cable, #10 AWG AL",null,null,400,"x",null,"FT",0,"=","   "]
[47,"600 V, Single Conductor Secondary UD Cable, #12 AWG CU",null,null,200,"x",null,"FT",0,"=","   "]
[48,"600 V, Single Conductor Secondary UD Cable, #2/0 AWG CU",null,null,200,"x",null,"FT",0,"=","   "]
[49,"#4 AWG Bare Copper, Soft Drawn",null,null,90,"x",null,"FT",0,"=","   "]
[50,"#2/0 AWG Bare Copper, Soft Drawn",null,null,80,"x",null,"FT",0,"=","   "]
[51,"5/8\" Copper Ground Rod, 10' long",null,null,7,"x",null,"EA",0,"=","   "]
[52,"Grounding lug, tin-plated copper, for Unistrut Channel",null,null,16,"x",null,"EA",0,"=","   "]
[53,"Transformer grounding lug",null,null,16,"x",null,"EA",0,"=","   "]
[54,"Ground Rod Clamp, 5/8\"",null,null,10,"x",null,"EA",0,"=","   "]
[55,"Cadweld Handle Clamp for use with C, E, Q and R molds",null,null,1,"x",null,"EA",0,"=","   "]
[56,"Ignitor Controller Unit, 6 ft",null,null,1,"x",null,"EA",0,"=","   "]
[57,"Horizontal thru parallel cable mold, #2/0 AWG to #2/0 AWG",null,null,1,"x",null,"EA",0,"=","   "]
[58,"#115 Weld Metal Cartridge",null,null,2,"x",null,"EA",0,"=","   "]
[59,"#2/0 Stranded to Copper Rod Horizontal Through Top mold",null,null,1,"x",null,"EA",0,"=","   "]
[60,"Fireproofing tape (20' lengths)",null,null,22,"x",null,"EA",0,"=","   "]
[61,"Bolt, 316 stainless steel, 3/8\" x 1-1/4\", Hex head cap screw",null,null,150,"x",null,"EA",0,"=","   "]
[62,"Redhead Trubol, 3/8\" x 3-3/4\", 316 stainless steel",null,null,40,"x",null,"EA",0,"=","   "]
[63,"Channel Washer, 1/2\" ID x 1-1/4\" OD flat washer, stainless steel",null,null,40,"x",null,"EA",0,"=","   "]
[64,"Hex nut, 3/8\" x 1-1/4\", 316 stainless steel",null,null,40,"x",null,"EA",0,"=","   "]
[65,"Channel Nut w/ Regular Spring, for 3/8\" hex head screw and 1-5/8\" channel, 1/2\"-13, 316 stainless steel",null,null,150,"x",null,"EA",0,"=","   "]
[{"$nulls":7},"TOTAL LUMP SUM PRICE:",null,null,{"$f":"SUM(K5:K69)","v":0}]
[]
[null,"The City may choose to purchase the materials directly from a single distributor or from multiple distributors if it is in the City’s best interest."]
[null,"The above prices include all mobilization, labor, material, and equipment, overhead, profit, taxes, insurance, permit fees, etc. to complete the work."]
[null,"The City of Georgetown reserves the right to add or reduce the scope of work and material quantities as the budget and schedule allows. \n"]